Cogmind - Beta 13 @@@ ROGUE MODE // 2024.07.31 @ 16:44:43 Player: Username Result: Destroyed by D-53 Grenadier with Mini Grenade Launcher Performance ------------- Evolutions (0) 0 Regions Visited (2) 400 Robots Destroyed (6) 30 Value Destroyed (44) 44 Prototype IDs (0) 0 Alien Tech Used (0) 0 Bonus (0) 0 TOTAL SCORE: 474 Bonus ------- None Cogmind --------- Core Integrity 0/250 Matter 300/300 Energy 125/125 System Corruption 0% Temperature Cool (2) Movement Flying (45) Location -10/Mines Parts ------- > --- POWER (1) -------- Light Ion Engine > --- PROPULSION (2) --- Wheel Flight Unit > --- UTILITY (2) ------ (None) > --- WEAPON (2) ------- Datajack > --- INVENTORY (5) ---- Small Storage Unit Medium Matter Pod (100) Tractor Beam Peak State ------------ > --- POWER ------------ Ion Engine > --- PROPULSION ------- Wheel Compact Wheel > --- UTILITY ---------- Small Storage Unit Tractor Beam > --- WEAPON ----------- Assault Rifle Light Assault Rifle > --- INVENTORY -------- Light Ion Engine [Rating: 7] Favorites ----------- Power Ion Engine Engine Ion Engine Propulsion Wheel Wheel Wheel Flight Unit Flight Unit Utility Tractor Beam Device Tractor Beam Storage Medium Matter Pod Weapon Light Assault Rifle Ballistic Gun Light Assault Rifle Special Melee Weapon Datajack Build | -11 -10 -10 ------- Run | Yrd Mat Min Slots Evolved . | . . . Power . | . . . Propulsion . | . . . Utility . | . . . Weapon . | . . . Parts Attached 20 | 10 5 5 Power 4 | 3 . 1 Engine 4 | 3 . 1 Core . | . . . Reactor . | . . . Propulsion 5 | 3 . 2 Treads . | . . . Leg . | . . . Wheel 4 | 3 . 1 Hover . | . . . Flight 1 | . . 1 Utility 5 | 2 3 . Device 2 | 1 1 . Storage 3 | 1 2 . Processor . | . . . Hackware . | . . . Protection . | . . . Artifact . | . . . Weapon 6 | 2 2 2 Energy Gun . | . . . Energy Cannon . | . . . Ballistic Gun 4 | 2 1 1 Ballistic Cannon . | . . . Launcher . | . . . Special Weapon . | . . . Impact Weapon . | . . . Slashing Weapon . | . . . Piercing Weapon . | . . . Special Melee Weapon 2 | . 1 1 Unidentified Prototypes . | . . . Parts Lost 5 | . . 5 Power 1 | . . 1 Propulsion 2 | . . 2 Utility . | . . . Weapon 2 | . . 2 Highest Loss Streak 4 | . . 4 To Critical Strikes . | . . . Average Slot Usage (%) 91 | . 100 83 Engine 13 | . 14 12 Wheel 25 | . 28 23 Flight 2 | . . 4 Device 12 | . 14 11 Storage 12 | . 14 9 Ballistic Gun 24 | . 28 19 Naked Turns . | . . . Heaviest Build 14 | 14 14 11 Greatest Support 26 | 26 20 26 Greatest Overweight (x) 1 | 1 . . Average Overweight (x) . | . . . Largest Inventory Capacity 8 | 8 8 5 Average Capacity 5 | 6 6 5 Most Carried 5 | 5 5 5 Average Carried 3 | 1 4 4 Final Capacity 8 | 8 5 5 Final Carried 5 | 3 5 3 Class Distribution -------------------- 100% | Mutant Dominant Class ---------------- Mutant | -10/Materials Mutant | -10/Mines Resources | -11 -10 -10 ----------- Run | Yrd Mat Min Matter Collected 577 | 324 . 253 Remotely 325 | 116 . 209 Salvage Created 191 | 124 . 67 Parts 10 | 4 . 6 Haulers Intercepted . | . . . Recyclers Shooed 2 | . . 2 Parts Field Recycled . | . . . Retrieved Matter . | . . . Parts Self-Destructed . | . . . Prevented . | . . . Kills | -11 -10 -10 ------- Run | Yrd Mat Min Combat Hostiles Destroyed 3 | . . 3 Guns 3 | . . 3 Classes Destroyed 4 | 2 . 2 Worker 1 | . . 1 Tunneler 1 | 1 . . Recycler 1 | 1 . . Swarmer 3 | . . 3 Best Kill Streak 3 | 1 . 3 Combat Bots Only 3 | . . 3 Max Kills in Single Turn 1 | 1 . 1 Gunslinging . | . . . Exploded . | . . . Melee . | . . . Uniques/NPCs Destroyed . | . . . Combat | -11 -10 -10 -------- Run | Yrd Mat Min Hostile Shots Fired 48 | . 2 46 Missed 17 | . 1 16 Damage Taken 643 | . 11 632 Core 266 | . . 266 Absorbed by Shields . | . . . Core Remaining (%) 100 | 100 . . Volleys Fired 28 | 6 . 22 Largest 2 | 2 . 2 Hottest 40 | 40 . 40 Shots Fired 47 | 12 . 35 Gun 47 | 12 . 35 Cannon . | . . . Launcher . | . . . Special . | . . . Kinetic 47 | 12 . 35 Thermal . | . . . Explosive . | . . . Electromagnetic . | . . . Robot Hit Streak 7 | 7 . 7 Robot Miss Streak 4 | 2 . 4 Penetration Max . | . . . Secondary Targets 1 | . . 1 Max Gunslinging Chain 1 | . . 1 Shots Hit Robots 29 | 8 . 21 Core Hits 12 | 4 . 8 Critical Kills . | . . . Critical Parts Destroyed . | . . . Critical Strikes . | . . . Melee Attacks 1 | . . 1 Impact . | . . . Slashing . | . . . Piercing . | . . . Sneak Attacks . | . . . Combat Hostiles . | . . . Follow-up Attacks . | . . . Damage Inflicted 285 | 79 . 206 Guns 281 | 79 . 202 Cannons . | . . . Explosions . | . . . Melee . | . . . Ramming 4 | . . 4 Kinetic 281 | 79 . 202 Thermal . | . . . Explosive . | . . . Electromagnetic . | . . . Impact . | . . . Slashing . | . . . Piercing . | . . . Highest Corruption . | . . . Average Corruption . | . . . Corruption Purged . | . . . Corruption Blocked . | . . . Overload Shots . | . . . Overflow Damage . | . . . Projectiles . | . . . Explosions . | . . . Melee . | . . . Knockbacks . | . . . Impact . | . . . Kinetic . | . . . Secondary . | . . . Self-Inflicted Damage 2 | . . 2 Shots . | . . . Rammed 1 | . . 1 Targets Rammed 1 | . . 1 Kicked . | . . . Crushed . | . . . Highest Temperature 11 | . . 11 Average Temperature 4 | . . 4 Received Heat Transfer 93 | . 6 87 Siege Activations . | . . . Robots Corrupted . | . . . Combat Hostiles . | . . . Parts Fried . | . . . Impact Corruptions . | . . . Robots Melted . | . . . Combat Hostiles . | . . . Parts Melted . | . . . Heat Transferred . | . . . Parts Sabotaged . | . . . Parts Stolen . | . . . Parts Stripped . | . . . Power Chain Reactions . | . . . Alert | -11 -10 -10 ------- Run | Yrd Mat Min Peak Influence 91 | 10 6 91 Initial 6 | . 6 1 Average 26 | 3 6 59 Maximum Alert Level . | . . . Low Security (%) 100 | 100 100 100 Level 1 . | . . . Level 2 . | . . . Level 3 . | . . . Level 4 . | . . . Level 5 . | . . . High Security . | . . . Max Security . | . . . Squads Dispatched . | . . . Investigation . | . . . Extermination . | . . . Reinforcement . | . . . Assault . | . . . Garrison . | . . . Intercept . | . . . Searches Triggered . | . . . Construction Impeded . | . . . Haulers Reinforced . | . . . Active Scanning Responses . | . . . Cargo Convoy Interrupts . | . . . Stealth | -11 -10 -10 --------- Run | Yrd Mat Min Distress Signals . | . . . Communications Jammed . | . . . Distress Signals . | . . . Times Spotted 13 | . 5 8 Peak Tracking Total 5 | . 5 4 Tactical Retreats 1 | . . 1 Traps | -11 -10 -10 ------- Run | Yrd Mat Min Traps Triggered . | . . . Indirectly . | . . . Trap Hack Attempts . | . . . Triggered . | . . . Disarmed . | . . . Reprogrammed . | . . . Reused . | . . . Traps Extracted . | . . . Installed . | . . . Triggered . | . . . Machines | -11 -10 -10 ---------- Run | Yrd Mat Min Machines Disabled . | . . . Max in Single Turn . | . . . Machines Repaired . | . . . Machines Dismantled . | . . . Machines Sabotaged . | . . . Overloaded Fab Kills . | . . . Hacking | -11 -10 -10 --------- Run | Yrd Mat Min Machines Accessed 3 | . 2 1 Terminals 3 | . 2 1 Fabricators . | . . . Repair Stations . | . . . Recycling Units . | . . . Scanalyzers . | . . . Garrison Access . | . . . Total Hacks 7 | . 3 4 Successful . | . . . Failed 7 | . 3 4 Catastrophic 3 | . 1 2 Database Lockouts . | . . . Manual 4 | . . 4 Terminals 7 | . 3 4 Fabricators . | . . . Repair Stations . | . . . Recycling Units . | . . . Scanalyzers . | . . . Garrison Access . | . . . Terminal Hacks . | . . . Fabricator Hacks . | . . . Repair Station Hacks . | . . . Recycling Unit Hacks . | . . . Scanalyzer . | . . . Garrison Access Hacks . | . . . Unauthorized Hacks . | . . . Terminals . | . . . Fabricators . | . . . Repair Stations . | . . . Recycling Units . | . . . Scanalyzers . | . . . Garrison Access . | . . . Data Cores Recovered . | . . . Used . | . . . Hacking Detections 3 | . 2 1 Full Trace Events 1 | . . 1 Feedback Events . | . . . Feedback Blocked . | . . . Robot Schematics Acquired . | . . . Robots Built . | . . . Authchips . | . . . Time . | . . . Total Robot Build Rating . | . . . Part Schematics Acquired . | . . . Parts Built . | . . . Authchips . | . . . Time . | . . . Total Part Build Rating . | . . . Parts Repaired . | . . . Time . | . . . Parts Recycled . | . . . Recycled Matter . | . . . Retrieved Matter . | . . . Retrieved Components . | . . . Parts Scanalyzed . | . . . Part Schematics Acquired . | . . . Parts Damaged . | . . . Bothacking | -11 -10 -10 ------------ Run | Yrd Mat Min Used RIF Installer . | . . . Robots Hacked 1 | . . 1 Non-combat . | . . . Combat 1 | . . 1 Robot Hacks Applied 1 | . . 1 parse_system 1 | . . 1 Relay Couplers Released . | . . . Fabnet Peak Effective % . | . . . Robots Rewired . | . . . Allies Hacked . | . . . Hacks Repelled . | . . . Allies | -11 -10 -10 -------- Run | Yrd Mat Min Total Allies . | . . . Largest Group . | . . . Highest-Rated Group . | . . . Highest-Rated Ally . | . . . Total Orders . | . . . Ally Attacks . | . . . Total Damage . | . . . Kills . | . . . Allies Corrupted . | . . . Allies Melted . | . . . Intel | -11 -10 -10 ------- Run | Yrd Mat Min Robot Analysis Total . | . . . Derelict Logs Recovered 1 | . . 1 Drone Launches . | . . . Drone Recoveries . | . . . Exploration | -11 -10 -10 ------------- Run | Yrd Mat Min Turns Passed 444 | 93 176 175 Spaces Moved 412 | 55 191 166 Core 20 | 20 . . Treads . | . . . Legs . | . . . Wheels 331 | 35 191 105 Hover . | . . . Flight 61 | . . 61 Fastest Speed 45 | 50 80 45 Average Speed 74 | 74 80 67 Slowest Speed 95 | 95 80 90 Overloaded Moves . | . . . Propulsion Burnouts . | . . . Robots Hopped . | . . . Cave-ins Triggered . | . . . Exploration Rate (%) 20 | 5 20 35 Regions Visited 2 Branch Regions 1 Pre-discovered Areas . | . . . Known Exits Taken . | . . . Unknown Exits Taken 2 | 1 1 . Scrap Searched . | . . . Spaces Dug . | . . . Terrain Destroyed . | . . . Melee . | . . . Projectile . | . . . AOE . | . . . Terrain Rammed . | . . . Walls Destroyed . | . . . Machines Disabled . | . . . Actions | -11 -10 -10 --------- Run | Yrd Mat Min Total 506 | 95 211 200 Wait 27 | 14 13 . Move 410 | 54 190 166 Hop . | . . . Pick Up 13 | 10 2 1 Fast Attach 1 | . 1 . Attach 13 | 8 . 5 Detach 4 | 1 . 3 Swap 6 | 2 4 . Drop 2 | . 1 1 Fire 28 | 6 . 22 Melee 1 | . . 1 Ram 1 | . . 1 Kick . | . . . Crush . | . . . Escape Stasis . | . . . Rewire . | . . . Trap . | . . . Miscellaneous . | . . . Route ------- -11/Scrapyard -10/Materials -10/Mines History --------- Turn | Location | Event 22 | -11/Scrapyard | Discovered new exit (range 16) 94 | -11/Scrapyard | Entered Materials 182 | -10/Materials | Discovered new exit (range 11) 270 | -10/Materials | Entered Mines 278 | -10/Mines | Learned location of 1 exit from Materials 309 | -10/Mines | Build established: Mutant 360 | -10/Mines | Assembled infested the area 382 | -10/Mines | Core integrity fell below 50% 412 | -10/Mines | Lost 4 parts (1p2n1w) 434 | -10/Mines | Core integrity fell below 20% 445 | -10/Mines | Destroyed by D-53 Grenadier with Mini Grenade Launcher Last Messages --------------- payload. 00364_ Acquired 118 matter. 00370_ R-06 Scavenger destroyed. 00371_ Acquired 14 matter. 00371_ K-01 Serf collects debris. 00375_ Wheel destroyed. 00376_ Acquired 10 matter. 00377_ Assault Rifle destroyed. 00379_ Ion Engine destroyed. 00381_ Com. Wheel destroyed. 00416_ Connecting with Terminal... 00416_ Current location identified: Mines 00433_ Critical hit (Burn: +37). 00434_ G-47 Trooper destroyed. 00436_ Lgt. Assault Rifle destroyed. 00438_ Acquired 34 matter. 00439_ Acquired 10 matter. 00439_ Jacked G-34 Mercenary... >>parse_system Reading system data... Map ----- +----------------------------------------------------+ | ??## ############# | | ??# # [ ** [! | | ??# # ################ | | ??## ## ######??????????????## ## | | ???## ###????????????????????###### | | ????# #???????????????????????????? | | ???## #???????????????????????????? | | ???# ##???????????????????????????? | | ???# ##????????????????????????????? | | ???# ##??####??????????????????????? | | ???## #### ##?????????????????????? | | ????## ##????????????????????? | | ?????## #####????????????????? | | ??????# #????????????????? | | ??????## #????????????????? | | ???????## ### #????????????????? | | ????????## ##?# #????????????????? | | ?????????## ###??# #????????????????? | | ??????????####????# #????????????????? | | ??#############???# #????????????????? | | ??# #???# #????????????????? | | ??# #???# ##???????????????? | | ??# * #??## ##??????????????? | | ??# % g #??# ##?????????????? | | ??# """ """ #### ##????????????? | | ??# """ """ @ d ##???????????? | | ??# """ """ ### #???????????? | | ?## """ """ #?# #???????????? | | ?#T #?# #???????????? | | ?## #?## #???????????? | | ??#############??# ##???????????? | | ?????????????????## ##????????????? | | ??????????????????# #?????????????? | | ??????????????????# #?????????????? | | ??????????????????# #?????????????? | | ??????????????????## ##?????????????? | | ???????????????????#####??????????????? | | ??????????????????????????????????????? | | ??????????????????????????????????????? | | ??????????????????????????????????????? | | ??????????????????????????????????????? | | ??????????????????????????????????????? | | ??????????????????????????????????????? | | | | | | | | | | | | | | | +----------------------------------------------------+ Best States ------------- Heat Dissipation 25 Energy Generation 10 Energy Capacity 250 Matter Stores 400 Matter Capacity 400 Sight Range 16 Terrain Scan Density 10 Evasion (%) 61 Item Schematics ----------------- None Robot Schematics ------------------ None Fabricated ------------ Nothing Alien Tech Used ----------------- None Achievements -------------- None Challenges ------------ None Game ------ Seed FieldWaveProjector Manual? 0 Play Time 00:10:27 Cumulative 31.9 hours Start 2024.07.31 @ 16:30:27 End 2024.07.31 @ 16:44:43 Sessions 1 Manual Loads 0 Difficulty Rogue Special Mode None Game No. 21 Rogue 21 Adventurer 0 Explorer 0 Win Type - Total 0 Types 0/0/0/0/0/0/0/0/0 Lore% 22 Gallery% 32 Achievement% 27 Wizard Run 0 Options --------- Layout 1 ASCII 0 Keyboard 0 Movement Mouse Keybinds 0 Fullscreen 2 Font 24/Crisp Map View 50x35 Zoom Use 0% Tactical HUD 1 Map Filters NONE Filters NONE Steam 1 RUN: 365bf05a-4a78-48ed-bb7d-4af00932dd97